bitfinex-derivatives/quotes_BTCF0:USTF0_20241023
["timestamp","ask_amount","ask_price","bid_price","bid_amount"]
[1729681604075,0.11,66517.0,66516.0,0.09336078]
[1729681604382,0.11,66517.0,66516.0,0.09331883]
[1729681605284,0.11,66517.0,66512.0,0.14164936]
[1729681605479,0.11,66513.0,66512.0,0.06641803]
[1729681605674,0.11,66513.0,66512.0,0.15974297]
[1729681608676,0.22,66513.0,66511.0,0.07522153]
[1729681608876,0.22,66512.0,66506.0,0.07522153]
[1729681609087,0.11,66507.0,66506.0,0.07522153]
[1729681609275,0.11,66507.0,66505.0,0.07522153]
[1729681609276,0.22,66507.0,66505.0,0.07522153]
[1729681609879,0.22,66507.0,66504.0,0.07522153]
[1729681611179,0.22,66507.0,66500.0,0.0902776]
[1729681611180,0.22,66507.0,66503.0,0.07522153]
[1729681611387,0.11,66504.0,66503.0,0.07522153]
[1729681611688,0.11,66504.0,66503.0,0.16878485]
[1729681613182,0.11,66504.0,66499.0,0.02736025]
[1729681613183,0.15277311,66504.0,66499.0,0.02736025]
[1729681613386,0.14460436,66519.0,66497.0,0.0389]
[1729681613387,0.11,66501.0,66498.0,0.11]
[1729681613684,0.04277311,66500.0,66497.0,0.0389]
[1729681613883,0.11,66508.0,66497.0,0.0389]
[1729681614079,0.04275248,66507.0,66504.0,0.11]
[1729681614271,0.04275248,66506.0,66505.0,0.0373]
[1729681614470,0.11,66508.0,66505.0,0.0373]
[1729681614471,0.04275248,66507.0,66505.0,0.0373]
[1729681615676,0.04275248,66506.0,66505.0,0.0373]
[1729681615878,0.11,66513.0,66505.0,0.1473]
[1729681616185,0.09247375,66512.0,66505.0,0.1473]
[1729681616688,0.09247375,66512.0,66509.0,0.11]
[1729681616874,0.09247375,66512.0,66510.0,0.0379]
[1729681617785,0.09247375,66512.0,66511.0,0.11]
[1729681618084,0.09247375,66512.0,66511.0,0.1507]
[1729681618783,0.04972127,66512.0,66511.0,0.1507]
[1729681618981,0.09247375,66512.0,66511.0,0.1507]
[1729681619173,0.09247375,66514.0,66511.0,0.1507]
[1729681620186,0.11,66515.0,66512.0,0.20435738]
[1729681620384,0.11,66515.0,66513.0,0.20435738]
[1729681620591,0.11,66515.0,66514.0,0.20435738]
[1729681620883,0.02672082,66526.0,66514.0,0.31435738]
[1729681621079,0.10268,66529.0,66522.0,0.07516524]
[1729681621279,0.10268,66529.0,66526.0,0.06013245]
[1729681621475,0.10268,66529.0,66512.0,0.11]
[1729681621476,0.10268,66529.0,66525.0,0.06013245]
[1729681621675,0.10268,66529.0,66526.0,0.06013245]
[1729681621876,0.10268,66529.0,66525.0,0.06013245]
[1729681622176,0.10268,66529.0,66517.0,0.09019828]
[1729681622177,0.10268,66529.0,66526.0,0.06013245]
[1729681622671,0.45096,66529.0,66526.0,0.06013245]
[1729681622874,0.10268,66529.0,66528.0,0.04509694]
[1729681623071,0.20894617,66530.0,66526.0,0.06013245]
[1729681623279,0.11,66527.0,66526.0,0.06013245]
[1729681624275,0.1485,66530.0,66526.0,0.11]
[1729681624483,0.11,66527.0,66526.0,0.07516524]
[1729681624678,0.11,66527.0,66526.0,0.0931043]
[1729681625184,0.11,66527.0,66526.0,0.07513683]
[1729681625389,0.11,66527.0,66525.0,0.07513683]
[1729681625576,0.0403,66529.0,66525.0,0.07513683]
[1729681625577,0.11,66526.0,66525.0,0.07513683]
[1729681625780,0.11,66526.0,66524.0,0.07513683]
[1729681625982,0.11,66525.0,66524.0,0.0751312]
[1729681626176,0.11,66525.0,66524.0,0.09317824]
[1729681627486,0.11,66525.0,66524.0,0.16829275]
[1729681627681,0.11,66525.0,66522.0,0.07511451]
[1729681627887,0.11,66523.0,66522.0,0.07511451]
[1729681628080,0.11,66523.0,66522.0,0.1682169]
[1729681628281,0.11,66523.0,66516.0,0.0377]
[1729681628282,0.20326001,66523.0,66516.0,0.0377]
[1729681628486,0.09326001,66522.0,66518.0,0.11]
[1729681628685,0.09326001,66521.0,66520.0,0.11]
[1729681628877,0.09326001,66521.0,66516.0,0.0377]
[1729681628878,0.15034821,66521.0,66516.0,0.06500689]
[1729681629083,0.14979214,66518.0,66517.0,0.11]
[1729681629591,0.19989714,66518.0,66517.0,0.11]
[1729681629791,0.30014035,66518.0,66517.0,0.11]
[1729681630582,0.15034821,66518.0,66517.0,0.11]
[1729681634792,0.15034821,66518.0,66517.0,0.561]
[1729681635295,0.10512737,66539.0,66517.0,0.561]
[1729681635296,0.16472709,66528.0,66517.0,0.87544986]
[1729681635492,0.11,66531.0,66527.0,0.11]
[1729681635689,0.11,66531.0,66528.0,0.16850113]
[1729681635889,0.11,66531.0,66528.0,0.07503494]
[1729681638700,0.11,66531.0,66527.0,0.07503494]
[1729681638897,0.11,66528.0,66523.0,0.22692196]
[1729681639110,0.11,66525.0,66524.0,0.09335936]
[1729681640291,0.0385,66539.0,66524.0,0.09335936]
[1729681640292,0.11,66528.0,66524.0,0.09335936]
[1729681640491,0.11,66528.0,66525.0,0.09334931]
[1729681640691,0.11,66528.0,66526.0,0.09334931]
[1729681640893,0.11,66528.0,66527.0,0.09334931]
[1729681641996,0.11,66528.0,66527.0,0.16836684]
[1729681643093,0.11,66528.0,66527.0,0.09334931]
[1729681643295,0.11,66528.0,66524.0,0.06003363]
[1729681645199,0.11,66528.0,66525.0,0.06003363]
[1729681647208,0.11,66528.0,66526.0,0.06003363]
[1729681648201,0.11,66528.0,66525.0,0.06003363]
[1729681648400,0.11,66528.0,66526.0,0.06003363]
[1729681650400,0.09221224,66527.0,66524.0,0.11]
[1729681650605,0.09221224,66526.0,66524.0,0.11]
[1729681650802,0.09221224,66525.0,66524.0,0.11]
[1729681650998,0.09221224,66527.0,66524.0,0.11]
[1729681651192,0.11,66528.0,66524.0,0.11]
[1729681651193,0.09221224,66526.0,66524.0,0.11]
[1729681651397,0.09221224,66525.0,66524.0,0.11]
[1729681652511,0.04267017,66525.0,66524.0,0.11]
[1729681653598,0.09325631,66527.0,66524.0,0.11]
[1729681654203,0.15084988,66527.0,66524.0,0.11]
[1729681654911,0.09413089,66526.0,66524.0,0.11]
[1729681655100,0.09413089,66525.0,66524.0,0.11]
[1729681656314,0.11,66528.0,66524.0,0.11]
[1729681657208,0.11,66531.0,66527.0,0.11]
[1729681657406,0.11,66531.0,66524.0,0.11]
[1729681657407,0.14808743,66530.0,66524.0,0.11]
[1729681657608,0.14808743,66529.0,66524.0,0.11]
[1729681657811,0.14808743,66528.0,66524.0,0.11]
[1729681658007,0.14808743,66527.0,66524.0,0.11]
[1729681658515,0.25975152,66531.0,66524.0,0.11]
[1729681659219,0.25975152,66531.0,66525.0,0.20534885]
[1729681659418,0.11,66529.0,66525.0,0.20534885]
[1729681660913,0.11,66529.0,66524.0,0.11]
[1729681662417,0.25975152,66531.0,66527.0,0.11]
[1729681665721,0.25975152,66531.0,66528.0,0.20533896]
[1729681665922,0.25975152,66531.0,66527.0,0.11]
[1729681668130,0.25975152,66531.0,66524.0,0.10196]
[1729681668332,0.11,66528.0,66524.0,0.10196]
[1729681671017,0.11,66528.0,66524.0,0.14709084]
[1729681671217,0.11,66528.0,66523.0,0.29479084]
[1729681671423,0.11,66528.0,66524.0,0.04513084]
[1729681672220,0.11,66531.0,66524.0,0.04513084]
[1729681673222,0.11,66531.0,66523.0,0.29479084]
[1729681673936,0.11,66531.0,66529.0,0.07521698]
[1729681674127,0.11,66531.0,66530.0,0.07521698]
[1729681674438,0.11,66531.0,66529.0,0.07521698]
[1729681674822,0.11,66531.0,66530.0,0.07521698]
[1729681675025,0.11,66531.0,66529.0,0.07521698]
[1729681675425,0.0385,66539.0,66529.0,0.07521698]
[1729681675631,0.0385,66539.0,66535.0,0.0601737]
[1729681677534,0.11,66536.0,66535.0,0.0601737]
[1729681680933,0.20284246,66536.0,66529.0,0.02717738]
[1729681681125,0.16489919,66531.0,66527.0,0.11]
[1729681681343,0.14964199,66530.0,66527.0,0.11]
[1729681681529,0.14964199,66529.0,66525.0,0.10196]
[1729681681738,0.14991171,66526.0,66525.0,0.12913467]
[1729681681936,0.19287351,66526.0,66525.0,0.12913467]
[1729681682650,0.14964199,66526.0,66525.0,0.12913467]
[1729681683245,0.14964199,66526.0,66525.0,0.05713112]
[1729681685342,0.14737266,66526.0,66525.0,0.05713112]
[1729681685531,0.09824844,66526.0,66525.0,0.05713112]
[1729681685733,0.0914345,66526.0,66525.0,0.05713112]
[1729681685948,0.04231028,66526.0,66525.0,0.05713112]
[1729681686247,0.0914345,66526.0,66525.0,0.05713112]
[1729681686842,0.04231028,66526.0,66525.0,0.05713112]
[1729681687242,0.0914345,66526.0,66525.0,0.05713112]
[1729681687637,0.04231028,66526.0,66525.0,0.05713112]
[1729681687949,0.0914345,66526.0,66525.0,0.05713112]
[1729681689055,0.11,66538.0,66525.0,0.26307817]
[1729681689239,0.11,66538.0,66533.0,0.20026755]
[1729681689547,0.11,66538.0,66534.0,0.09390382]
[1729681689737,0.11,66538.0,66535.0,0.09390382]
[1729681689933,0.11,66538.0,66536.0,0.09390382]
[1729681690139,0.11,66538.0,66537.0,0.09390382]
[1729681694851,0.10192,66554.0,66537.0,0.09394388]
[1729681695047,0.14993402,66572.0,66536.0,0.13647956]
[1729681695048,0.1503,66548.0,66546.0,0.07520898]
[1729681695452,0.11,66547.0,66545.0,0.07520898]
[1729681695751,0.11,66547.0,66536.0,0.02647956]
[1729681695752,0.1503,66548.0,66544.0,0.07520898]
[1729681695953,0.11,66545.0,66541.0,0.04510196]
[1729681696855,0.11,66545.0,66542.0,0.04510196]
[1729681697247,0.11,66545.0,66542.0,0.11]
[1729681697452,0.11,66545.0,66541.0,0.04510196]
[1729681698356,0.00104001,66569.0,66544.0,0.11]
[1729681698660,0.34381134,66612.0,66536.0,0.0384]
[1729681698661,0.37477736,66568.0,66551.0,0.11]
[1729681698961,0.11,66554.0,66548.0,0.11]
[1729681699562,0.11,66550.0,66545.0,0.11]
[1729681699760,0.11,66546.0,66543.0,0.12360196]
[1729681699965,0.11,66550.0,66545.0,0.11]
[1729681703557,0.11,66550.0,66545.0,0.13651039]
[1729681704066,0.11,66548.0,66543.0,0.0785]
[1729681704266,0.14909274,66547.0,66545.0,0.11]
[1729681704458,0.25909274,66546.0,66543.0,0.10503206]
[1729681704767,0.14909274,66545.0,66536.0,0.0384]
[1729681704964,0.11,66537.0,66536.0,0.0384]
[1729681705162,0.11,66537.0,66536.0,0.06521256]
[1729681705163,0.20250169,66537.0,66536.0,0.06521256]
[1729681705871,0.09250169,66537.0,66536.0,0.17521256]
[1729681708865,0.08998377,66537.0,66536.0,0.17521256]
[1729681710568,0.04163897,66537.0,66536.0,0.17521256]
[1729681710963,0.11,66542.0,66536.0,0.38161875]
[1729681710964,0.25958704,66542.0,66536.0,0.38161875]
[1729681711268,0.11,66542.0,66540.0,0.19999562]
[1729681711467,0.11,66542.0,66541.0,0.09413704]
[1729681713564,0.11,66542.0,66541.0,0.09402338]
[1729681714258,0.33006,66573.0,66541.0,0.09402338]
[1729681714463,0.0413,66559.0,66556.0,0.0450072]
[1729681714675,0.11,66557.0,66556.0,0.0450072]
[1729681715372,0.11,66557.0,66553.0,0.0600096]
[1729681715570,0.11,66554.0,66553.0,0.0600096]
[1729681718166,0.11,66554.0,66549.0,0.075012]
[1729681718368,0.11,66550.0,66549.0,0.075012]
[1729681718568,0.11,66550.0,66549.0,0.16902635]
[1729681718965,0.20061056,66550.0,66544.0,0.11]
[1729681719165,0.09061056,66549.0,66544.0,0.11]
[1729681720464,0.09061056,66549.0,66544.0,0.13653817]
[1729681720465,0.1460861,66549.0,66544.0,0.13653817]
[1729681721275,0.1460861,66549.0,66547.0,0.11]
[1729681721475,0.09061056,66548.0,66547.0,0.11]
[1729681721774,0.09061056,66552.0,66547.0,0.11]
[1729681721975,0.14611345,66551.0,66547.0,0.11]
[1729681722273,0.20061056,66550.0,66547.0,0.11]
[1729681722480,0.09061056,66549.0,66547.0,0.11]
[1729681723075,0.11,66550.0,66547.0,0.11]
[1729681723272,0.09084836,66549.0,66547.0,0.11]
[1729681723579,0.11,66553.0,66548.0,0.11]
[1729681723775,0.09089705,66552.0,66548.0,0.11]
[1729681724166,0.09089705,66552.0,66551.0,0.11]
[1729681724370,0.04206158,66552.0,66551.0,0.11]
[1729681724678,0.04883547,66552.0,66551.0,0.11]
[1729681724981,0.14725567,66556.0,66551.0,0.11]
[1729681725175,0.09089705,66555.0,66551.0,0.11]
[1729681725374,0.11,66552.0,66550.0,0.10188]
[1729681725569,0.09089705,66551.0,66550.0,0.10188]
[1729681726074,0.11,66552.0,66550.0,0.20559103]
[1729681726277,0.11,66552.0,66551.0,0.09379317]
[1729681726471,0.11,66552.0,66551.0,0.16891715]
[1729681726681,0.11,66552.0,66551.0,0.16921804]
[1729681726884,0.11,66552.0,66551.0,0.09409406]
[1729681727682,0.0381,66559.0,66551.0,0.09409406]
[1729681727989,0.11,66552.0,66549.0,0.09013548]
[1729681728287,0.11,66552.0,66538.0,0.10532834]
[1729681728288,0.0381,66559.0,66551.0,0.09013548]
[1729681728491,0.0381,66559.0,66558.0,0.06010832]
[1729681728783,0.0381,66559.0,66557.0,0.06010832]
[1729681729172,0.45072,66558.0,66557.0,0.06010832]
[1729681732089,0.56072,66558.0,66557.0,0.06010832]
[1729681732785,0.45072,66558.0,66557.0,0.06010832]
[1729681732980,0.56072,66558.0,66557.0,0.06010832]
[1729681733973,0.65262622,66558.0,66544.0,0.0378]
[1729681734285,0.11,66548.0,66544.0,0.0378]
[1729681736381,0.11,66548.0,66544.0,0.06469337]
[1729681738173,0.11,66551.0,66546.0,0.11]
[1729681738384,0.04254202,66550.0,66549.0,0.11]
[1729681740975,0.11,66556.0,66549.0,0.29378764]
[1729681741176,0.11,66556.0,66554.0,0.07514342]
[1729681742382,0.11,66556.0,66555.0,0.07514342]
[1729681742989,0.11,66556.0,66555.0,0.1687421]
[1729681743378,0.11,66556.0,66555.0,0.07514342]
[1729681743580,0.11,66556.0,66554.0,0.07514342]
[1729681745086,0.11,66556.0,66555.0,0.16870479]
[1729681745390,0.11,66556.0,66555.0,0.16867599]
[1729681745985,0.11,66559.0,66555.0,0.09353257]
[1729681746190,0.11,66559.0,66556.0,0.07512364]
[1729681747786,0.11,66559.0,66555.0,0.11332364]
[1729681747975,0.11,66556.0,66555.0,0.11332364]
[1729681748175,0.11,66556.0,66555.0,0.0382]
[1729681752888,0.0784,66569.0,66555.0,0.1482]
[1729681753092,0.11,66565.0,66561.0,0.11]
[1729681753303,0.11,66565.0,66555.0,0.0382]
[1729681753304,0.11,66562.0,66558.0,0.11]
[1729681754290,0.0784,66569.0,66558.0,0.11]
[1729681754487,0.04272685,66568.0,66565.0,0.11]
[1729681754796,0.11,66569.0,66565.0,0.11]
[1729681756193,0.14958704,66566.0,66565.0,0.13661035]
[1729681756409,0.19260189,66566.0,66565.0,0.13661035]
[1729681756601,0.1928695,66566.0,66565.0,0.13661035]
[1729681756992,0.14982678,66566.0,66565.0,0.13661035]
[1729681757294,0.04301485,66566.0,66565.0,0.13661035]
[1729681758084,0.14982678,66566.0,66565.0,0.13661035]
[1729681758298,0.20779615,66566.0,66565.0,0.13661035]
[1729681758500,0.25773841,66566.0,66565.0,0.13661035]
[1729681758702,0.14982678,66566.0,66565.0,0.13661035]
[1729681760897,0.14979201,66566.0,66565.0,0.13661035]
[1729681761096,0.29961879,66566.0,66565.0,0.13661035]
[1729681761306,0.14982678,66566.0,66565.0,0.13661035]
[1729681761805,0.29960681,66566.0,66565.0,0.13661035]
[1729681761995,0.14982678,66566.0,66565.0,0.13661035]
[1729681762589,0.09295711,66566.0,66565.0,0.13661035]
[1729681763301,0.11,66575.0,66565.0,0.22981455]
[1729681763507,0.11,66575.0,66571.0,0.05996783]
[1729681763695,0.11,66578.0,66574.0,0.04497573]
[1729681764097,0.11,66575.0,66574.0,0.04497607]
[1729681764506,0.11,66575.0,66573.0,0.04497607]
[1729681764808,0.11,66574.0,66572.0,0.04497607]
[1729681765099,0.1061145,66583.0,66572.0,0.04497607]
[1729681765100,0.11,66573.0,66572.0,0.04497607]
[1729681766094,0.11,66573.0,66566.0,0.1018]
[1729681766095,0.11,66573.0,66569.0,0.05996783]
[1729681766399,0.1061145,66583.0,66568.0,0.05996783]
[1729681766400,0.11,66570.0,66568.0,0.05996783]
[1729681767609,0.11,66570.0,66569.0,0.05996783]
[1729681767795,0.11,66570.0,66568.0,0.05996783]
[1729681769295,0.11,66570.0,66569.0,0.05996783]
[1729681770310,0.11,66570.0,66568.0,0.05996783]
[1729681770607,0.11,66569.0,66568.0,0.05996783]
[1729681771195,0.15263603,66569.0,66564.0,0.02651312]
[1729681771414,0.14850729,66568.0,66565.0,0.11]
[1729681771605,0.14850729,66567.0,66565.0,0.11]
[1729681771808,0.14850729,66566.0,66565.0,0.11]
[1729681773899,0.09213846,66566.0,66565.0,0.11]
[1729681774100,0.09170567,66566.0,66565.0,0.11]
[1729681777209,0.04243576,66566.0,66565.0,0.11]
[1729681777704,0.14777028,66566.0,66565.0,0.11]
[1729681778412,0.11,66570.0,66565.0,0.20357543]
[1729681778704,0.11,66570.0,66566.0,0.09357543]
[1729681778927,0.11,66570.0,66567.0,0.09356454]
[1729681779105,0.11,66570.0,66568.0,0.09356454]
[1729681779409,0.11,66570.0,66569.0,0.09356454]
[1729681781911,0.11,66570.0,66569.0,0.0935682]
[1729681782696,0.0377,66572.0,66569.0,0.0935682]
[1729681782896,0.0377,66572.0,66570.0,0.0935682]
[1729681783101,0.0377,66572.0,66571.0,0.0935682]
[1729681783507,0.0377,66572.0,66571.0,0.18370593]
[1729681783820,0.0377,66572.0,66571.0,0.09354785]
[1729681785298,0.0377,66572.0,66571.0,0.18371654]
[1729681785615,0.0377,66572.0,66571.0,0.09354785]
[1729681785920,0.0377,66572.0,66571.0,0.2050549]
[1729681786208,0.0377,66572.0,66568.0,0.18514609]
[1729681786616,0.0377,66572.0,66568.0,0.11]
[1729681788810,0.0377,66572.0,66571.0,0.0601221]
[1729681793018,0.0377,66572.0,66570.0,0.0273317]
[1729681793215,0.25900467,66571.0,66562.0,0.25156]
[1729681793415,0.2987847,66570.0,66562.0,0.2508]
[1729681793716,0.14900467,66569.0,66562.0,0.2508]
[1729681793923,0.11,66567.0,66562.0,0.17670456]
[1729681794216,0.24222708,66566.0,66562.0,0.17670456]
[1729681794422,0.11,66563.0,66562.0,0.06670456]
[1729681794717,0.15277883,66563.0,66562.0,0.06670456]
[1729681795022,0.09232424,66563.0,66562.0,0.06670456]
[1729681800320,0.1486445,66563.0,66562.0,0.06670456]
[1729681801318,0.11,66566.0,66562.0,0.23290661]
[1729681801617,0.11,66563.0,66562.0,0.02770456]
[1729681801925,0.11,66563.0,66562.0,0.20566801]
[1729681802521,0.11,66563.0,66562.0,0.09382829]
[1729681804723,0.0788,66572.0,66562.0,0.20382829]
[1729681804922,0.11,66570.0,66569.0,0.07512162]
[1729681805127,0.56064,66570.0,66569.0,0.16894991]
[1729681805421,0.11,66570.0,66569.0,0.16894991]
[1729681806424,0.56064,66570.0,66569.0,0.16894991]
[1729681807728,0.11,66570.0,66569.0,0.16894991]
[1729681808322,0.65227174,66570.0,66563.0,0.11]
[1729681808529,0.11,66567.0,66563.0,0.11]
[1729681808727,0.04240155,66566.0,66563.0,0.11]
[1729681808933,0.11,66567.0,66563.0,0.11]
[1729681808934,0.04240155,66565.0,66563.0,0.11]
[1729681809129,0.04240155,66564.0,66563.0,0.11]
[1729681810435,0.04240155,66564.0,66559.0,0.11]
[1729681810629,0.11,66567.0,66555.0,0.00225361]
[1729681810833,0.04254534,66566.0,66560.0,0.11]
[1729681811038,0.04254534,66565.0,66560.0,0.11]
[1729681811229,0.04254534,66564.0,66560.0,0.11]
[1729681811431,0.11,66567.0,66560.0,0.11]
[1729681811729,0.02736076,66571.0,66560.0,0.11]
[1729681811730,0.11,66564.0,66560.0,0.11]
[1729681812540,0.04260149,66563.0,66559.0,0.11]
[1729681812723,0.11,66564.0,66559.0,0.11]
[1729681813037,0.04259353,66563.0,66559.0,0.11]
[1729681813237,0.11,66564.0,66559.0,0.11]
[1729681813436,0.04263097,66563.0,66559.0,0.11]
[1729681813632,0.11,66564.0,66559.0,0.11]
[1729681813843,0.04263443,66563.0,66559.0,0.11]
[1729681814040,0.11,66564.0,66559.0,0.11]
[1729681814346,0.04262311,66563.0,66559.0,0.11]
[1729681814522,0.11,66564.0,66559.0,0.11]
[1729681814728,0.0426239,66563.0,66559.0,0.11]
[1729681814929,0.11,66564.0,66559.0,0.11]
[1729681815435,0.04262513,66563.0,66559.0,0.11]
[1729681815634,0.11,66564.0,66559.0,0.11]
[1729681815834,0.04261228,66563.0,66558.0,0.11]
[1729681816037,0.11,66564.0,66558.0,0.11]
[1729681816233,0.11,66564.0,66559.0,0.204947]
[1729681816443,0.06678096,66572.0,66563.0,0.09014922]
[1729681816636,0.06678096,66572.0,66568.0,0.07512546]
[1729681817436,0.06678096,66572.0,66569.0,0.07512546]
[1729681817635,0.11,66570.0,66569.0,0.07512546]
[1729681817837,0.11,66570.0,66569.0,0.16862213]
[1729681818035,0.11,66570.0,66568.0,0.07512546]
[1729681818242,0.11,66569.0,66568.0,0.07512546]
[1729681818437,0.11,66569.0,66568.0,0.1686677]
[1729681819533,0.11,66569.0,66568.0,0.09353231]
[1729681820534,0.11,66569.0,66568.0,0.09352974]
[1729681820744,0.11,66569.0,66568.0,0.12014134]
[1729681821742,0.11,66569.0,66568.0,0.19529215]
[1729681822145,0.22,66569.0,66568.0,0.19529215]
[1729681822448,0.22,66569.0,66555.0,0.00225361]
[1729681822449,0.45068,66568.0,66555.0,0.00225361]
[1729681822636,0.45068,66568.0,66556.0,0.09337295]
[1729681822637,0.11,66560.0,66556.0,0.09337295]
[1729681822941,0.04,66559.0,66557.0,0.09337295]
[1729681823145,0.04,66559.0,66538.0,0.10532834]
[1729681823146,1.12952,66559.0,66538.0,0.10532834]
[1729681823333,0.11,66539.0,66533.0,0.11]
[1729681823539,0.11,66539.0,66530.0,0.0376]
[1729681823540,0.04636647,66538.0,66537.0,0.11]
[1729681825053,0.04598749,66538.0,66537.0,0.11]
[1729681825651,0.11,66538.0,66533.0,0.11]
[1729681830651,0.11,66535.0,66531.0,0.1018]
[1729681832253,0.11,66535.0,66530.0,0.24936]
[1729681832948,0.11,66537.0,66533.0,0.11]
[1729681835552,0.12909304,66552.0,66533.0,0.11]
[1729681835747,0.11,66539.0,66533.0,0.11]
[1729681838055,0.11,66539.0,66534.0,0.09063626]
[1729681838238,0.11,66539.0,66535.0,0.09063626]
[1729681838440,0.11,66539.0,66533.0,0.11]
[1729681838639,0.11,66539.0,66534.0,0.09062614]
[1729681838855,0.11,66539.0,66535.0,0.09062614]
[1729681839058,0.11,66539.0,66533.0,0.11]
[1729681839247,0.11,66539.0,66534.0,0.09062614]
[1729681839447,0.11,66539.0,66535.0,0.09062614]
[1729681839649,0.11,66539.0,66533.0,0.11]
[1729681839855,0.11,66539.0,66534.0,0.09062367]
[1729681840153,0.11,66539.0,66535.0,0.09062367]
[1729681840342,0.11,66539.0,66536.0,0.09062367]
[1729681840546,0.11,66539.0,66530.0,0.13936]
[1729681840744,0.11,66546.0,66531.0,0.20050962]
[1729681840745,0.11,66536.0,66531.0,0.20050962]
[1729681841056,0.11,66536.0,66532.0,0.09050962]
[1729681841260,0.11,66536.0,66533.0,0.09050962]
[1729681841552,0.11,66536.0,66534.0,0.09050962]
[1729681841754,0.11,66536.0,66535.0,0.09050962]
[1729681844154,0.11,66536.0,66535.0,0.09055138]
[1729681845459,0.11,66536.0,66535.0,0.18039966]
[1729681846151,0.11,66536.0,66535.0,0.08984828]
[1729681846452,0.11,66536.0,66535.0,0.18042896]
[1729681846852,0.11,66536.0,66535.0,0.11721297]
[1729681847448,0.11,66536.0,66535.0,0.02736469]
[1729681847655,0.11,66536.0,66530.0,0.2502]
[1729681847852,0.11,66536.0,66530.0,0.24936]
[1729681848948,0.11,66536.0,66531.0,0.11]
[1729681853171,0.11,66533.0,66530.0,0.06406544]
[1729681853853,0.11,66533.0,66531.0,0.16616981]
[1729681853854,0.22,66533.0,66531.0,0.16616981]
[1729681854053,0.22,66533.0,66530.0,0.02646544]
[1729681854264,0.0402,66532.0,66520.0,0.0782]
[1729681854467,0.11,66521.0,66520.0,0.10557281]
[1729681857070,0.11,66521.0,66520.0,0.06707281]
[1729681857261,0.11,66521.0,66520.0,0.02737281]
[1729681857458,0.11,66521.0,66518.0,0.1018]
[1729681858360,0.11,66521.0,66518.0,0.12896909]
[1729681858860,0.11,66521.0,66519.0,0.20055909]
[1729681859062,0.11,66521.0,66520.0,0.09149753]
[1729681859255,0.11,66521.0,66520.0,0.20069433]
[1729681859457,0.11,66521.0,66520.0,0.09149753]
[1729681861062,0.11,66521.0,66518.0,0.02716909]
[1729681861263,0.11,66521.0,66515.0,0.41904682]
[1729681861484,0.11,66518.0,66515.0,0.41904682]
[1729681862267,0.11,66518.0,66515.0,0.31732682]
[1729681862467,0.11,66520.0,66516.0,0.11]
[1729681862669,0.11,66523.0,66519.0,0.11]
[1729681863074,0.11,66520.0,66519.0,0.11]
[1729681864673,0.11,66520.0,66517.0,0.02986794]
[1729681868966,0.11,66520.0,66518.0,0.1814574]
[1729681869176,0.11,66520.0,66519.0,0.09140662]
[1729681870075,0.11,66520.0,66519.0,0.20140662]
[1729681870575,0.11,66520.0,66519.0,0.09140662]
[1729681871267,0.11,66520.0,66519.0,0.09142267]
[1729681871476,0.11,66520.0,66519.0,0.18147345]
[1729681874678,0.11,66520.0,66519.0,0.09142267]
[1729681875182,0.11,66520.0,66519.0,0.20043857]
[1729681876275,0.11,66520.0,66519.0,0.20041169]
[1729681883574,0.11,66520.0,66519.0,0.43225291]
[1729681883770,0.22,66520.0,66519.0,0.20041169]
[1729681884079,0.11,66520.0,66517.0,0.02986794]
[1729681884279,0.11,66518.0,66517.0,0.1050895]
[1729681884487,0.11,66520.0,66517.0,0.1050895]
[1729681884781,0.11,66520.0,66517.0,0.02986794]
[1729681885782,0.11,66520.0,66517.0,0.1050895]
[1729681886087,0.11,66520.0,66517.0,0.10283493]
[1729681886383,0.1182,66532.0,66519.0,0.11]
[1729681886579,0.11,66526.0,66522.0,0.06018135]
[1729681886982,0.11,66526.0,66520.0,0.0375]
[1729681886983,0.11,66526.0,66523.0,0.06018135]
[1729681888787,0.11,66525.0,66523.0,0.06018135]
[1729681891102,0.11,66525.0,66524.0,0.20087913]
[1729681897190,0.11,66525.0,66524.0,0.22812738]
[1729681898088,0.15522022,66525.0,66524.0,0.02724825]
[1729681898298,0.15522022,66525.0,66515.0,0.13868]
[1729681898494,0.11,66520.0,66515.0,0.13868]
[1729681900787,0.11,66520.0,66515.0,0.16605558]
[1729681901388,0.11,66520.0,66515.0,0.06437558]
[1729681901787,0.1182,66532.0,66515.0,0.06437558]
[1729681901992,0.8631,66559.0,66530.0,0.11]
[1729681901993,0.04524021,66531.0,66530.0,0.11]
[1729681902188,0.04524021,66531.0,66526.0,0.11]
[1729681902386,0.11,66532.0,66526.0,0.11]
[1729681902587,0.04546351,66531.0,66526.0,0.11]
[1729681902784,0.11,66528.0,66521.0,0.0395]
[1729681902990,0.11,66525.0,66521.0,0.0395]
[1729681903191,0.11,66529.0,66523.0,0.11]
[1729681903894,0.11,66533.0,66521.0,0.0395]
[1729681903895,0.11,66526.0,66521.0,0.0395]
[1729681906100,0.11,66532.0,66525.0,0.11]
[1729681906300,0.20556393,66544.0,66531.0,0.09020682]
[1729681906503,0.20556393,66544.0,66543.0,0.06013059]
[1729681906689,0.20556393,66544.0,66542.0,0.06013059]
[1729681907107,0.67084,66543.0,66542.0,0.06013059]
[1729681907402,0.67084,66543.0,66541.0,0.06013059]
[1729681907600,0.22,66542.0,66536.0,0.07516323]
[1729681907807,0.22,66537.0,66536.0,0.07516323]
[1729681908402,0.22,66537.0,66535.0,0.07516323]
[1729681908598,0.22,66536.0,66530.0,0.09020682]